bitfinex/quotes_ETHUSD_20220202
["timestamp","ask_amount","ask_price","bid_price","bid_amount"]
[1643840019839,0.71471472,2648.5,2647.1,0.448]
[1643840019840,0.1887,2648.4,2647.1,0.448]
[1643840020039,0.1887,2647.9,2647.2,0.448]
[1643840020237,0.09999999,2648.0,2647.2,0.448]
[1643840020438,0.1887,2648.4,2647.2,0.448]
[1643840020837,0.09999999,2648.0,2647.2,0.448]
[1643840021076,0.09999999,2648.0,2647.2,0.6367]
[1643840021674,0.1887,2648.4,2647.2,0.6367]
[1643840021873,0.40631585,2648.4,2647.2,0.6367]
[1643840022079,0.09999999,2647.6,2647.2,0.6367]
[1643840022278,0.40631585,2648.4,2647.3,0.00167083]
[1643840022474,0.09999999,2647.7,2647.3,0.00167083]
[1643840022874,0.09999999,2647.7,2647.0,0.448]
[1643840023278,0.1887,2647.9,2647.0,0.448]
[1643840023474,0.09999999,2647.6,2647.1,0.00167083]
[1643840023676,0.1887,2647.9,2647.1,0.00167083]
[1643840023879,0.25791995,2647.6,2647.1,0.00167083]
[1643840024078,0.35914938,2647.2,2646.8,0.00167083]
[1643840024281,2.74999999,2646.9,2646.8,0.00167083]
[1643840024578,3.79289999,2646.9,2646.8,0.00167083]
[1643840024831,4.54946764,2646.9,2645.7,0.44967083]
[1643840025031,4.54946764,2646.9,2646.4,0.02314197]
[1643840025032,0.1889,2646.8,2646.4,0.02314197]
[1643840025226,0.09999999,2646.5,2646.4,0.02314197]
[1643840025426,0.09999999,2646.6,2646.4,0.02314197]
[1643840025830,0.09999999,2646.6,2645.8,0.00167083]
[1643840026026,0.1889,2646.8,2645.8,0.00167083]
[1643840026229,0.09999999,2646.4,2646.0,0.02314279]
[1643840026627,0.90326969,2646.5,2646.0,0.02314279]
[1643840026826,1.1255,2646.4,2646.0,0.02314279]
[1643840027030,0.09999999,2646.1,2645.6,0.1889]
[1643840027233,3.9,2645.9,2645.7,0.02314348]
[1643840027434,6.08528168,2645.8,2645.7,0.02314348]
[1643840027628,6.26667999,2645.8,2645.7,0.02314348]
[1643840028229,4.35,2645.7,2644.3,0.448]
[1643840028433,0.09999999,2644.6,2643.9,0.005]
[1643840028687,0.23777876,2645.0,2643.9,0.005]
[1643840028888,0.09999999,2644.7,2643.9,0.005]
[1643840029182,0.81965154,2644.6,2643.6,0.448]
[1643840029382,0.81965154,2644.6,2643.6,0.453]
[1643840029582,0.23777876,2645.0,2644.2,0.00180663]
[1643840029987,0.189,2645.0,2644.2,0.00180663]
[1643840030183,0.09999999,2645.3,2644.2,0.00180663]
[1643840030184,0.189,2645.2,2644.2,0.00180663]
[1643840030385,0.09999999,2645.4,2644.3,0.448]
[1643840030689,0.189,2645.5,2644.3,0.748]
[1643840030888,1.40938,2646.5,2644.6,0.00180636]
[1643840030889,0.28899999,2646.0,2644.6,0.00180636]
[1643840031092,0.189,2646.1,2644.7,1.348]
[1643840031285,0.1889,2646.4,2645.1,0.9]
[1643840031485,0.09999999,2646.7,2644.8,2.01520111]
[1643840031685,0.90475922,2646.5,2645.3,0.89700222]
[1643840031883,0.1889,2646.6,2645.4,0.448]
[1643840031884,0.09999999,2646.3,2645.4,0.448]
[1643840032083,0.00582086,2645.9,2645.6,0.00582155]
[1643840032335,0.00582086,2645.9,2645.7,0.448]
[1643840032731,0.00582086,2645.9,2645.6,0.00582155]
[1643840032932,0.09999999,2645.8,2645.6,0.00582155]
[1643840033133,0.09999999,2645.8,2645.3,0.448]
[1643840033332,0.09999999,2645.8,2645.6,0.00582162]
[1643840034232,0.09999999,2645.8,2645.0,0.748]
[1643840034432,0.09999999,2645.4,2645.0,0.748]
[1643840034832,0.09999999,2645.4,2645.0,0.448]
[1643840035031,0.09999999,2645.4,2644.9,0.00725339]
[1643840035432,0.09999999,2645.4,2644.6,0.448]
[1643840035632,0.09999999,2645.4,2645.0,0.00181327]
[1643840035831,0.189,2646.0,2645.0,0.00181327]
[1643840036084,0.0126524,2646.3,2645.0,0.00181327]
[1643840036085,0.00737911,2646.3,2645.1,2.33768]
[1643840036287,0.1889,2646.5,2645.3,0.9]
[1643840036485,0.09999999,2646.9,2645.5,0.9]
[1643840036486,0.1889,2646.6,2645.5,0.9]
[1643840036685,0.01261367,2647.2,2645.8,0.9]
[1643840036686,0.1889,2647.1,2645.8,0.9]
[1643840036884,0.1889,2647.1,2645.9,0.748]
[1643840036885,0.09999999,2647.0,2645.9,0.748]
[1643840037083,0.23290861,2647.3,2646.0,2.33696]
[1643840037285,0.09999999,2646.9,2646.1,0.3]
[1643840037483,0.1889,2647.2,2646.3,0.94448]
[1643840037782,0.68807188,2647.4,2646.4,0.448]
[1643840037783,0.09999999,2647.1,2646.4,0.448]
[1643840037982,0.09999999,2647.0,2646.4,0.448]
[1643840038191,0.00582742,2646.9,2646.4,0.448]
[1643840038985,0.09999999,2647.0,2646.4,0.448]
[1643840038986,0.98425095,2647.0,2646.4,0.448]
[1643840039192,0.09999999,2646.6,2646.4,0.448]
[1643840040224,0.35839982,2646.7,2646.4,0.448]
[1643840040424,0.09999999,2646.5,2645.5,1.88932]
[1643840040627,0.00582759,2646.6,2645.9,0.448]
[1643840040824,0.09999999,2646.3,2645.9,0.448]
[1643840041824,0.00580826,2646.2,2645.9,0.448]
[1643840042626,0.00469068,2646.5,2645.9,0.448]
[1643840043126,0.00580829,2646.2,2645.9,0.44963831]
[1643840043773,0.00580829,2646.2,2645.9,0.448]
[1643840043980,0.09999999,2646.4,2645.9,0.448]
[1643840044176,0.00580829,2646.2,2645.9,0.448]
[1643840044375,0.00580829,2646.2,2646.0,0.26039885]
[1643840044577,0.00580829,2646.2,2646.1,4.798]
[1643840044777,2.49343184,2646.2,2646.1,6.098]
[1643840044979,0.1889,2647.3,2646.3,5.5]
[1643840045177,0.1889,2647.8,2646.6,0.01250204]
[1643840045378,0.93996058,2647.9,2647.1,0.20316528]
[1643840045578,0.18838,2648.2,2647.2,0.448]
[1643840045777,0.09999999,2647.9,2647.2,0.448]
[1643840045977,1.60035138,2647.8,2647.2,0.448]
[1643840046378,0.09999999,2647.4,2646.7,1.88824]
[1643840046584,1.60035138,2647.3,2646.8,0.448]
[1643840046784,0.09999999,2646.9,2646.5,0.448]
[1643840046976,0.09999999,2647.2,2646.5,0.448]
[1643840047177,0.09999999,2646.8,2646.5,0.448]
[1643840047451,0.1889,2647.2,2646.5,0.448]
[1643840047645,0.6891081,2647.8,2646.5,0.448]
[1643840047646,0.01265045,2647.1,2646.5,0.448]
[1643840047847,0.09999999,2646.6,2646.5,0.448]
[1643840048046,0.01265045,2647.1,2646.2,0.00163831]
[1643840048247,0.1889,2647.0,2646.2,0.448]
[1643840048647,0.1889,2647.0,2646.3,1.00564448]
[1643840048845,0.00580066,2646.7,2646.4,0.448]
[1643840049747,0.1889,2647.4,2646.8,0.25219771]
[1643840050048,2.01263584,2647.8,2646.9,0.448]
[1643840050049,0.1889,2647.7,2646.9,0.448]
[1643840050347,0.1889,2647.3,2646.9,0.448]
[1643840050546,0.1887,2647.7,2646.9,0.448]
[1643840050747,0.1887,2647.5,2646.9,0.448]
[1643840050945,0.1887,2647.6,2646.9,0.448]
[1643840051176,1.80877781,2647.5,2646.9,0.448]
[1643840051377,0.1887,2647.4,2646.9,0.448]
[1643840051576,0.1887,2647.4,2646.5,0.3]
[1643840051783,0.1887,2647.4,2646.5,0.448]
[1643840051976,0.1887,2647.6,2646.5,0.448]
[1643840052180,0.94249671,2647.2,2646.5,0.448]
[1643840052579,0.1887,2647.7,2646.2,0.00163831]
[1643840052779,0.00404533,2646.6,2646.2,0.00163831]
[1643840052979,0.00404533,2646.6,2646.1,0.448]
[1643840053180,0.00404533,2646.6,2646.1,1.00132816]
[1643840053778,0.00404533,2646.6,2646.2,0.0058014]
[1643840053978,0.00404533,2646.6,2646.3,0.448]
[1643840054385,0.00404533,2646.6,2646.4,0.25223118]
[1643840054579,0.00404533,2646.6,2646.4,0.70023118]
[1643840055734,0.00404533,2646.6,2646.4,1.00023118]
[1643840055935,0.00404533,2646.6,2646.4,1.30023118]
[1643840056334,4.533e-05,2646.6,2646.5,7.98452611]
[1643840056535,4.533e-05,2646.6,2646.5,8.44491238]
[1643840056834,4.533e-05,2646.6,2646.5,6.96038627]
[1643840057037,4.533e-05,2646.6,2646.5,7.07358067]
[1643840057234,4.533e-05,2646.6,2646.5,10.17307106]
[1643840057433,4.533e-05,2646.6,2646.5,6.96038627]
[1643840057634,0.00580036,2646.8,2646.5,6.96038627]
[1643840057834,0.00580036,2646.8,2646.6,2.88875]
[1643840058134,0.00580036,2646.8,2646.7,5.948]
[1643840058334,0.95592324,2648.0,2646.7,8.15800049]
[1643840058579,0.00580059,2646.8,2646.7,1.70528881]
[1643840059180,0.00580059,2646.8,2646.7,0.70528881]
[1643840059585,0.71579238,2647.5,2646.7,0.70528881]
[1643840059781,0.00580055,2646.9,2646.7,0.70528881]
[1643840059985,0.00580055,2646.9,2646.7,0.448]
[1643840060781,0.1889,2647.6,2647.2,0.84156773]
[1643840060983,0.00580052,2646.9,2646.8,0.2107245]
[1643840061383,0.00580052,2646.9,2646.8,1.1550045]
[1643840061584,0.00580052,2646.9,2646.8,4.17027043]
[1643840061585,5.2e-07,2646.9,2646.8,4.17027043]
[1643840061785,0.00404065,2648.0,2647.0,1.88796]
[1643840061989,0.1887,2648.9,2647.3,1.8878767]
[1643840062189,1.59977878,2648.8,2647.4,3.38203089]
[1643840062429,1.59977878,2648.8,2648.0,0.85946224]
[1643840062629,1.59977878,2648.7,2648.4,0.23622095]
[1643840062827,0.1887,2649.0,2648.5,0.448]
[1643840063032,1.59968554,2648.9,2648.5,0.448]
[1643840063529,0.1887,2648.8,2648.5,0.448]
[1643840063730,1.59968554,2648.7,2648.5,0.448]
[1643840064128,0.1887,2649.0,2648.6,0.25580792]
[1643840064329,1.59968211,2648.9,2648.6,0.70380792]
[1643840064731,0.1887,2649.2,2648.6,0.70380792]
[1643840064926,0.6891081,2649.5,2648.6,0.70380792]
[1643840064927,1.5995794,2649.1,2648.6,0.70380792]
[1643840065128,1.5995794,2649.0,2648.6,0.448]
[1643840065330,1.5995794,2648.9,2648.6,0.448]
[1643840065528,1.5995794,2648.8,2648.6,0.448]
[1643840065829,0.00579916,2648.9,2648.6,0.448]
[1643840066076,1.59963951,2648.8,2648.6,0.448]
[1643840066479,1.59963951,2648.8,2647.9,0.448]
[1643840066480,0.1887,2648.7,2647.9,0.448]
[1643840066676,1.59963951,2648.6,2647.9,0.448]
[1643840067078,1.59963951,2648.5,2647.9,0.448]
[1643840067287,2.55300956,2648.7,2647.7,0.21203659]
[1643840067475,1.59963951,2648.4,2647.7,0.21203659]
[1643840067676,1.59963951,2648.3,2647.5,0.88519609]
[1643840067877,1.59963951,2648.4,2647.5,0.02392682]
[1643840068079,1.59963951,2648.3,2647.5,0.02392682]
[1643840068279,0.00579967,2648.2,2647.5,0.02392682]
[1643840068480,1.59963951,2648.1,2647.5,0.02392682]
[1643840068680,1.59963951,2648.1,2647.2,0.57217837]
[1643840068879,1.09352781,2648.0,2647.2,0.57217837]
[1643840069080,1.59963951,2647.9,2647.2,0.57217837]
[1643840069277,0.1887,2647.8,2647.2,0.57217837]
[1643840069476,0.1887,2647.8,2646.9,0.448]
[1643840069477,1.59963951,2647.7,2646.9,0.448]
[1643840069682,0.00579994,2647.8,2646.9,0.448]
[1643840069939,0.00579994,2647.8,2647.0,1.88832]
[1643840070135,0.00579994,2647.8,2647.1,0.448]
[1643840070339,0.1887,2648.2,2647.1,0.448]
[1643840070534,0.1887,2648.3,2647.7,0.25758228]
[1643840070736,0.1887,2648.7,2647.7,0.25758228]
[1643840070934,1.59997563,2648.6,2647.8,0.448]
[1643840071134,0.1887,2648.5,2647.8,0.448]
[1643840071334,1.59997563,2648.4,2647.8,0.448]
[1643840071737,0.00560387,2648.3,2647.8,0.448]
[1643840072740,0.1887,2648.8,2648.1,0.24233872]
[1643840072936,0.1887,2648.8,2647.8,0.448]
[1643840072937,0.00400781,2648.2,2647.8,0.448]
[1643840073988,1.59978757,2648.7,2647.9,0.7651396]
[1643840074186,0.70115685,2649.2,2648.0,3.698]
[1643840074187,0.00544479,2648.1,2648.0,3.698]
[1643840074983,0.00544479,2648.1,2648.0,4.86911944]
[1643840075188,0.1887,2649.1,2648.0,4.86911944]
[1643840075383,0.00544477,2648.2,2648.0,4.86911944]
[1643840075584,0.00544477,2648.2,2648.0,1.61911944]
[1643840075888,0.00544477,2648.2,2648.0,0.67523904]
[1643840076284,0.8778081,2649.1,2648.0,0.67523904]
[1643840076285,1.62354656,2649.0,2648.0,0.67523904]
[1643840076483,0.00400475,2648.2,2648.0,0.67523904]
[1643840077087,0.00400475,2648.2,2647.8,1.88779]
[1643840077342,0.00400475,2648.2,2647.5,0.448]
[1643840077541,0.1887,2648.4,2647.5,0.448]
[1643840077843,0.194183,2648.1,2646.8,0.448]
[1643840078040,0.79218419,2647.8,2647.0,1.88838]
[1643840078237,1.59977455,2647.7,2646.8,0.70747004]
[1643840078436,1.78847455,2647.7,2646.9,1.8884335]
[1643840078637,1.59977455,2647.6,2646.8,0.70747004]
[1643840078837,1.59977455,2647.6,2646.8,0.448]
[1643840079037,0.00400236,2647.4,2646.8,0.448]
[1643840079939,0.1887,2647.5,2646.8,0.448]
[1643840080139,0.00400236,2647.2,2646.8,0.448]
[1643840080346,0.00400236,2647.2,2646.5,0.57999432]
[1643840080740,1.60377691,2647.2,2646.5,0.57999432]
[1643840080943,0.00400236,2647.2,2646.5,0.57999432]
[1643840081190,0.68391883,2647.0,2646.5,0.57999432]
[1643840081393,0.68391883,2647.0,2646.7,0.00580792]
[1643840081394,1.59977455,2646.9,2646.7,0.00580792]
[1643840082387,1.59977455,2646.9,2646.5,0.57999432]
[1643840082592,0.1889,2646.8,2646.7,0.00580784]
[1643840082990,0.1889,2646.9,2646.7,0.00580784]
[1643840083188,1.60076165,2646.8,2646.7,0.00580784]
[1643840083388,0.1889,2646.9,2646.7,0.00580784]
[1643840083589,0.1889,2646.9,2646.5,0.57999432]
[1643840083590,1.60075117,2646.8,2646.5,0.57999432]
[1643840083791,1.60075117,2646.8,2646.6,0.00580787]
[1643840083989,0.1889,2646.9,2646.6,0.00580787]
[1643840084190,1.6007667,2646.8,2646.6,0.00580787]
[1643840084391,0.18838,2646.7,2646.1,0.02323599]
[1643840084590,1.83568733,2646.6,2646.1,0.02323599]
[1643840084831,1.7896667,2646.5,2645.4,0.00163831]
[1643840085033,1.6007667,2646.4,2645.4,0.00163831]
[1643840085832,1.0458087,2646.5,2645.4,0.00163831]
[1643840086031,1.60105636,2646.4,2645.4,0.00163831]
[1643840086231,1.60105636,2646.4,2645.8,0.26174602]
[1643840086431,0.1889,2646.7,2645.8,0.26174602]
[1643840086632,1.60098538,2646.6,2645.8,0.26174602]
[1643840086832,0.1889,2646.5,2645.8,0.0018057]
[1643840087033,0.1889,2646.5,2645.8,0.00344401]
[1643840087233,0.01243237,2646.8,2645.8,0.00163831]
[1643840087234,0.1889,2646.7,2645.8,0.00163831]
[1643840087433,1.60101211,2646.6,2646.1,0.00180549]
[1643840087635,0.00197267,2645.8,2645.7,0.00722305]
[1643840088033,0.00197267,2645.8,2645.7,0.2361912]
[1643840088432,0.00197267,2645.8,2645.7,0.22896815]
[1643840089880,0.00197267,2645.8,2645.6,1.0]
[1643840090182,0.00197267,2645.8,2645.4,0.00163852]
[1643840090787,0.00197267,2645.8,2645.7,0.19526519]
[1643840090981,0.00197267,2645.8,2645.5,0.00180154]
[1643840091983,0.00197267,2645.8,2645.3,0.21540939]
[1643840092181,0.00197267,2645.8,2645.5,0.00512279]
[1643840093048,0.00197267,2645.8,2645.7,0.2454395]
[1643840093356,0.00197267,2645.8,2645.5,0.00512279]
[1643840094351,0.00197267,2645.8,2645.4,0.19885781]
[1643840094548,0.00197267,2645.8,2645.5,0.00512279]
[1643840095649,0.00197267,2645.8,2645.4,0.64685781]
[1643840095853,0.00197267,2645.8,2645.5,0.95000279]
[1643840096279,0.00197267,2645.8,2645.5,1.7540855]
[1643840096676,0.18066566,2646.5,2645.6,0.448]
[1643840096876,0.1889,2646.7,2645.8,0.94479]
[1643840097080,0.00546027,2646.8,2645.9,0.748]
[1643840097280,0.00546027,2646.8,2646.5,0.73294809]
[1643840097477,0.00546027,2646.8,2646.6,0.61691143]
[1643840098078,0.1889,2647.5,2646.6,0.61691143]
[1643840098276,0.00546171,2646.8,2646.6,1.56139143]
[1643840099276,0.28933062,2647.6,2646.6,1.56139143]
[1643840099477,0.00546171,2646.8,2646.6,1.56139143]
[1643840100337,0.1887,2647.5,2646.6,1.56139143]
[1643840100542,0.28933062,2647.6,2646.6,1.56139143]
[1643840100739,0.00548025,2646.8,2646.6,1.56139143]
[1643840101143,0.00548025,2646.8,2646.6,0.61691143]
[1643840101341,0.00548025,2646.8,2646.6,0.41170289]
[1643840101539,0.28933062,2647.6,2646.6,0.41170289]
[1643840101739,1.60060054,2647.5,2646.6,0.41170289]
[1643840102039,0.00548025,2646.8,2646.6,0.41170289]
[1643840102540,0.00548025,2646.8,2646.7,0.21912595]
[1643840102739,0.28933062,2647.6,2646.7,0.66712595]
[1643840102940,1.78946722,2647.5,2646.7,0.66712595]
[1643840103140,1.60056722,2647.4,2646.7,0.66712595]
[1643840103340,0.00548025,2646.8,2646.7,0.66712595]
[1643840104179,0.1889,2647.5,2646.7,0.66712595]
[1643840104379,0.00547605,2646.9,2646.7,0.66712595]
[1643840105180,0.27639994,2647.6,2646.8,0.80886326]
[1643840105380,0.27639994,2647.6,2646.8,1.25686326]
[1643840105381,1.60050375,2647.5,2646.8,1.25686326]
[1643840105584,0.00547603,2646.9,2646.8,1.25686326]
[1643840106385,0.1887,2648.0,2646.8,1.25686326]
[1643840106583,1.60024626,2647.9,2647.1,0.94428]
[1643840106783,1.60024626,2647.9,2647.1,1.39228]
[1643840107183,0.1887,2648.0,2647.1,1.39228]
[1643840107432,0.02189112,2648.5,2647.1,1.39228]
[1643840107433,0.1887,2648.4,2647.1,1.39228]
[1643840107631,1.60014643,2648.3,2647.1,1.39228]
[1643840107833,0.00499211,2647.7,2647.1,1.39228]
[1643840108029,0.00499211,2647.7,2647.3,0.68749053]
[1643840108228,0.00499211,2647.7,2647.4,0.448]
[1643840108427,0.00499211,2647.7,2647.2,1.18335543]
[1643840108629,0.00499211,2647.7,2647.3,0.448]
[1643840108831,0.1887,2648.4,2647.3,0.448]
[1643840109035,0.00499216,2647.6,2647.3,0.448]
[1643840109629,0.00499216,2647.6,2647.3,1.448]
[1643840110028,0.50549412,2648.0,2647.3,1.448]
[1643840110230,0.50549412,2648.0,2647.9,0.22211363]
[1643840111081,0.50549412,2648.0,2647.9,0.67011363]
[1643840113281,0.50549412,2648.0,2647.9,1.36843306]
[1643840115439,0.50549412,2648.0,2647.9,4.35029515]
[1643840115639,0.50549412,2648.0,2647.9,1.96843306]
[1643840115837,0.00501934,2648.1,2647.9,6.44058742]
[1643840116041,0.8778081,2649.6,2648.0,5.49619089]
[1643840116238,0.01204368,2650.0,2648.0,5.49619089]
[1643840116239,1.59952991,2649.5,2648.6,0.9436]
[1643840116440,1.59952991,2649.4,2649.2,0.24430224]
[1643840116637,1.59952991,2649.3,2649.2,0.24430224]
[1643840116843,0.00277599,2649.7,2649.2,0.24430224]
[1643840116844,0.00277599,2649.7,2649.2,0.69230224]
[1643840117041,0.00277599,2649.8,2649.2,0.69230224]
[1643840117240,0.9188108,2650.4,2649.2,0.69230224]
[1643840117241,0.6891081,2650.3,2649.4,0.99999999]
[1643840117441,0.00277758,2649.9,2649.5,1.39116]
[1643840117639,0.00277758,2649.9,2649.6,1.0174188]
[1643840117842,0.46194948,2651.0,2649.7,2.3341]
[1643840118038,0.1887,2651.3,2649.7,2.3341]
[1643840118039,0.1885,2651.1,2649.7,5.43359039]
[1643840118239,0.1885,2651.2,2650.0,0.3]
[1643840118441,1.1073108,2651.4,2650.4,0.94304]
[1643840118695,0.1885,2651.4,2651.1,0.25206515]
[1643840118888,1.35776727,2650.7,2650.5,1.0]
[1643840119085,0.1885,2651.4,2650.6,0.448]
[1643840119390,1.1073108,2651.7,2650.6,0.448]
[1643840119785,0.9188108,2651.6,2650.8,0.87946664]
[1643840119993,0.1885,2651.5,2651.1,0.20918391]
[1643840120190,0.1885,2651.8,2651.2,0.448]
[1643840120389,0.9188108,2651.9,2651.2,0.448]
[1643840120390,0.1885,2651.9,2651.2,0.448]
[1643840120587,0.1885,2652.1,2651.2,0.448]
[1643840120787,0.1885,2652.2,2651.2,0.448]
[1643840121088,0.01597975,2652.1,2651.7,1.20325801]
[1643840121388,1.0655,2652.3,2651.8,0.448]
[1643840121589,0.1885,2652.8,2651.8,12.78656862]
[1643840121789,0.1885,2653.3,2652.1,5.599]
[1643840122094,0.1885,2653.3,2652.2,2.93783364]
[1643840122345,0.133316,2653.9,2653.7,0.84267172]
[1643840122346,0.1384,2653.8,2653.7,0.84267172]
[1643840122641,0.133316,2653.9,2653.7,0.448]
[1643840123038,0.133316,2654.6,2653.7,0.448]
[1643840123237,0.1882,2654.5,2653.7,0.448]
[1643840123439,0.84701617,2654.7,2653.7,0.448]
[1643840123662,0.1882,2654.6,2653.7,0.448]
[1643840123841,0.0121177,2654.5,2653.0,1.0]
[1643840124039,0.19374594,2654.2,2653.3,0.448]
[1643840124238,0.1884,2654.1,2653.3,0.448]
[1643840124644,0.231392,2653.4,2653.3,0.448]
[1643840124844,0.86942877,2653.7,2652.7,0.448]
[1643840125039,0.1884,2653.6,2652.7,0.448]
[1643840125447,0.1884,2653.6,2651.4,3.79619559]
[1643840125646,0.74693967,2651.9,2651.5,7.448]
[1643840125845,0.1885,2652.5,2652.0,0.00580832]
[1643840126679,0.26836129,2652.1,2652.0,0.00580832]
[1643840126881,0.26836129,2652.1,2650.9,0.20625711]
[1643840126882,1.21025856,2652.1,2651.2,0.448]
[1643840127086,1.02175856,2652.1,2652.0,0.00580697]
[1643840127389,2.21590703,2652.1,2649.6,0.01257461]
[1643840127581,2.21590703,2652.1,2649.7,0.448]
[1643840127783,1.0,2651.9,2649.7,0.448]
[1643840127981,1.0,2651.9,2649.7,3.948]
[1643840127982,0.80129871,2650.9,2649.7,3.948]
[1643840128387,0.80129871,2650.9,2649.7,2.24278813]
[1643840128682,0.1885,2650.8,2649.7,0.448]
[1643840128880,0.1885,2650.8,2649.0,1.41467105]
[1643840129080,0.69311226,2650.4,2649.3,0.20918391]
[1643840129281,0.69311226,2650.4,2649.3,0.65718391]
[1643840129942,0.1885,2650.8,2649.3,0.65718391]
[1643840130139,0.1885,2651.2,2649.3,0.65718391]
[1643840130739,0.1885,2651.2,2650.1,0.00580802]
[1643840130938,0.86555999,2650.8,2650.1,0.00580802]
[1643840131748,0.86555999,2650.8,2649.9,1.048]
[1643840132148,0.1885,2651.2,2650.3,0.00580788]
[1643840132149,0.1886,2651.2,2650.3,0.00580788]
[1643840132343,0.1886,2651.2,2650.4,0.46012324]
[1643840132544,0.1885,2651.8,2650.4,0.57331764]
[1643840132741,0.1885,2652.1,2650.5,0.3243744]
[1643840132943,0.1885,2652.3,2650.8,0.99999999]
[1643840133143,0.00678424,2652.2,2651.3,0.77879715]
[1643840133343,0.00678424,2652.2,2651.4,0.448]
[1643840133789,0.00400588,2652.2,2651.4,0.448]
[1643840133985,0.00400588,2652.2,2651.5,0.1131944]
[1643840134190,0.00277836,2652.5,2651.6,0.448]
[1643840134391,0.00400693,2652.2,2651.6,0.448]
[1643840134589,0.00400693,2652.2,2651.7,0.1885]
[1643840134788,0.00400693,2652.2,2651.8,0.448]
[1643840134988,0.00400693,2652.2,2652.0,0.81707569]
[1643840135194,0.00400693,2652.2,2652.1,3.03060722]
[1643840135389,0.00277836,2652.7,2652.2,0.94218]
[1643840135587,0.00277836,2653.5,2652.3,1.63649999]
[1643840135788,0.00277836,2653.5,2652.3,2.7532835]
[1643840135991,0.00277836,2653.5,2652.5,0.7515445]
[1643840136188,0.83900459,2653.8,2652.2,1.24218]
[1643840136189,0.73090486,2652.3,2652.2,1.24218]
[1643840136388,0.83900459,2653.8,2652.2,1.24218]
[1643840136588,0.83900459,2653.8,2652.3,0.448]
[1643840136789,0.00277836,2653.7,2652.3,0.448]
[1643840136989,0.19117836,2653.7,2652.5,0.9421213]
[1643840137189,0.19117836,2653.7,2652.6,1.39012]
[1643840137433,0.00277836,2653.7,2652.6,1.99012]
[1643840137636,0.01206261,2653.8,2652.6,1.99012]
[1643840137839,0.0128273,2654.1,2652.6,1.99012]
[1643840138031,2.61162047,2654.0,2652.6,1.99012]
[1643840138230,1.59729208,2653.9,2652.6,2.99012]
[1643840138432,0.1884,2653.8,2652.6,2.99012]
[1643840138932,0.00277836,2653.7,2652.6,2.99012]
[1643840139132,0.00583605,2653.3,2652.6,2.99012]
[1643840139734,0.00583605,2653.3,2652.9,0.99999999]
[1643840139937,0.00583605,2653.3,2653.0,1.3899393]
[1643840140135,0.00277836,2653.8,2653.0,0.448]
[1643840140337,0.00583612,2653.2,2653.1,0.3]
[1643840140534,0.00583612,2653.2,2653.1,0.748]
[1643840140934,0.00583612,2653.2,2653.1,1.6899011]
[1643840141380,0.00277836,2654.4,2653.1,1.6899011]
[1643840141580,0.00583608,2653.3,2653.1,1.6899011]
[1643840141784,0.00583608,2653.3,2653.1,0.748]
[1643840142380,0.00583608,2653.3,2653.2,0.94189]
[1643840142580,0.00277836,2654.2,2653.2,1.38989]
[1643840142780,0.00583605,2653.3,2653.2,1.98989]
[1643840142985,0.00583605,2653.3,2653.2,1.748]
[1643840143181,0.00583605,2653.3,2653.2,1.048]
[1643840143381,0.00583605,2653.3,2653.2,0.748]
[1643840143781,0.19117836,2654.2,2653.2,0.748]
[1643840143981,0.00583601,2653.4,2653.2,0.748]
[1643840145042,0.00277836,2654.1,2653.2,0.748]
[1643840145340,0.00398801,2653.4,2653.2,0.748]
[1643840145740,0.00398801,2653.4,2653.2,0.448]
[1643840145948,0.00398801,2653.4,2652.4,3.76839]
[1643840146140,0.68178936,2653.5,2652.7,0.448]
[1643840146339,0.68178936,2653.5,2652.8,0.448]
[1643840146542,0.19238801,2653.4,2652.8,0.448]
[1643840146740,0.19238801,2653.4,2652.8,1.39011]
[1643840146741,0.00398801,2653.4,2652.8,1.39011]
[1643840146943,0.00398801,2653.4,2652.8,0.448]
[1643840147142,0.00398801,2653.4,2652.2,0.448]
[1643840147143,0.1884,2653.3,2652.2,0.448]
[1643840147344,0.01504818,2653.2,2651.3,0.01227711]
[1643840147546,0.01504818,2653.2,2651.4,0.448]
[1643840147547,0.01249808,2652.5,2651.4,0.448]
[1643840147743,0.1885,2652.4,2651.9,0.00584473]
[1643840147941,0.2535801,2652.2,2651.9,0.00584473]
[1643840148147,0.1885,2652.1,2651.9,0.00584473]
[1643840148588,0.91105754,2651.4,2650.5,0.31250533]
[1643840148788,0.00277836,2652.0,2651.9,0.00584308]
[1643840149187,0.19127836,2652.0,2651.9,0.00584308]
[1643840149392,0.1885,2652.1,2651.9,0.00584308]
[1643840149790,0.68938349,2652.0,2651.1,0.448]
[1643840149990,0.19700952,2651.9,2651.1,0.448]
[1643840150192,0.1885,2651.9,2651.1,0.448]
[1643840150391,0.00278095,2651.8,2651.1,0.448]
[1643840150595,0.1885,2651.7,2651.1,0.448]
[1643840150898,0.00971433,2651.8,2651.1,0.448]
[1643840151090,0.00971433,2651.8,2650.8,0.6]
[1643840151091,0.91875428,2651.7,2650.8,0.3]
[1643840151291,0.91875428,2651.7,2650.9,0.3]
[1643840151490,0.91875428,2651.7,2650.8,0.748]
[1643840151693,0.00278095,2651.6,2650.8,1.048]
[1643840152090,0.00278095,2651.6,2650.8,1.9908381]
[1643840152338,0.00278095,2651.6,2651.1,0.00583899]
[1643840152533,0.91875428,2651.7,2651.1,0.00583899]
[1643840153134,0.00278095,2651.9,2651.1,0.00583899]
[1643840153335,0.00278095,2651.9,2651.1,0.448]
[1643840153640,1.60088851,2651.9,2651.3,0.00583885]
[1643840153834,1.59810756,2651.9,2651.3,0.00583885]
[1643840154041,0.1885,2652.0,2651.3,0.00583885]
[1643840154335,1.59809232,2651.9,2651.3,0.00583885]
[1643840154535,1.60087327,2651.9,2651.1,1.048]
[1643840154736,1.60087327,2651.9,2651.5,0.00583867]
[1643840155136,1.59809232,2651.8,2651.5,0.00583867]
[1643840155338,0.1885,2652.0,2651.5,0.00583867]
[1643840155537,1.59808018,2651.9,2651.5,0.00583867]
[1643840155740,1.59808018,2651.8,2650.8,0.448]
[1643840155941,4.23841062,2651.7,2651.6,0.00583861]
[1643840156197,0.86350635,2651.0,2650.4,0.448]
[1643840156493,0.1885,2651.5,2650.4,0.448]